bitfinex/quotes_BTCUSD_20260307
["timestamp","ask_amount","ask_price","bid_price","bid_amount"]
[1772859039480,0.00148,68106.0,68102.0,0.0002]
[1772859041662,0.01326022,68105.0,68097.0,0.07362467]
[1772859042078,0.00148,68106.0,68097.0,0.07362467]
[1772859045425,0.00148,68106.0,68102.0,0.0002]
[1772859049544,0.07341393,68107.0,68102.0,0.0002]
[1772859049768,0.00148,68106.0,68102.0,0.0002]
[1772859052795,0.01524628,68106.0,68102.0,0.0002]
[1772859053139,0.01546629,68106.0,68102.0,0.0002]
[1772859053548,0.00170001,68106.0,68102.0,0.0002]
[1772859056710,0.00170001,68106.0,68102.0,2.988e-05]
[1772859060625,0.00034421,68120.0,68102.0,0.22068052]
[1772859060843,0.00148,68119.0,68109.0,0.17512025]
[1772859061071,0.07339557,68124.0,68110.0,0.09233964]
[1772859061278,0.00148,68118.0,68110.0,0.09233964]
[1772859062507,0.07339557,68124.0,68111.0,0.07340958]
[1772859062705,0.00148,68123.0,68112.0,0.08859038]
[1772859063119,0.07379507,68125.0,68112.0,0.08859038]
[1772859063120,0.00148,68122.0,68112.0,0.08859038]
[1772859064822,0.00148,68122.0,68113.0,0.07340742]
[1772859065012,0.00148,68122.0,68113.0,0.1619978]
[1772859065809,0.0004,68125.0,68113.0,0.1619978]
[1772859066010,0.00148,68124.0,68113.0,0.1619978]
[1772859067119,0.00022001,68122.0,68113.0,0.1619978]
[1772859069890,0.00148,68124.0,68114.0,0.08859038]
[1772859071704,0.00148,68123.0,68115.0,0.07340527]
[1772859072105,0.00148,68123.0,68116.0,0.08859038]
[1772859072307,0.00148,68123.0,68113.0,0.07340742]
[1772859073798,0.07487772,68122.0,68112.0,0.08879038]
[1772859074187,0.01134264,68121.0,68103.0,0.0001242]
[1772859074449,0.01134264,68121.0,68101.0,0.1483]
[1772859074450,0.01134264,68117.0,68101.0,0.1483]
[1772859074650,0.08711228,68114.0,68099.0,0.07342229]
[1772859074871,0.01134264,68113.0,68099.0,0.07342229]
[1772859075457,0.01134264,68111.0,68099.0,0.07342229]
[1772859075751,0.01134264,68111.0,68098.0,0.0002]
[1772859075752,0.01134264,68107.0,68098.0,0.0002]
[1772859077906,0.07341497,68106.0,68098.0,0.0002]
[1772859081048,0.01134264,68105.0,68098.0,0.0002]
[1772859081547,0.01134264,68103.0,68098.0,0.0002]
[1772859082429,0.01134264,68101.0,68098.0,0.0002]
[1772859085399,0.07341928,68102.0,68098.0,0.0002]
[1772859091550,0.09341928,68102.0,68098.0,0.0002]
[1772859096683,0.07341928,68102.0,68098.0,0.0002]
[1772859099313,0.0825451,68103.0,68098.0,0.0002]
[1772859099513,0.07341862,68103.0,68098.0,0.0002]
[1772859099711,0.00912648,68102.0,68098.0,0.0002]
[1772859099927,0.00912648,68102.0,68095.0,0.0002]
[1772859101968,0.00912648,68100.0,68095.0,0.0002]
[1772859102266,0.00912648,68100.0,68091.0,0.0002]
[1772859103469,0.00912648,68100.0,68089.0,0.07343259]
[1772859103669,0.09162661,68100.0,68088.0,0.0002]
[1772859104004,0.00912648,68099.0,68088.0,0.0002]
[1772859104214,0.00912648,68097.0,68088.0,0.0002]
[1772859104418,0.00912648,68097.0,68084.0,0.0002]
[1772859105387,0.00897185,68097.0,68084.0,0.0002]
[1772859105612,0.00912648,68095.0,68084.0,0.0002]
[1772859106221,0.0734279,68094.0,68084.0,0.0002]
[1772859106439,0.00912648,68093.0,68084.0,0.0002]
[1772859106637,0.00148,68092.0,68084.0,0.0002]
[1772859106873,0.00148,68092.0,68084.0,0.0003015]
[1772859107299,0.00132538,68092.0,68084.0,0.0003015]
[1772859108349,0.00132538,68092.0,68085.0,0.07343761]
[1772859109402,0.08388227,68092.0,68085.0,0.07343761]
[1772859114524,0.01045186,68092.0,68085.0,0.07343761]
[1772859115304,0.01029713,68092.0,68085.0,0.07343761]
[1772859115652,0.01029713,68092.0,68085.0,0.07363761]
[1772859117692,0.08372757,68092.0,68085.0,0.07363761]
[1772859117898,0.01029713,68092.0,68085.0,0.07363761]
[1772859118104,0.08372735,68092.0,68085.0,0.07363761]
[1772859118506,0.01029713,68092.0,68085.0,0.07363761]
[1772859118926,0.08372753,68092.0,68085.0,0.0002]
[1772859119127,0.00148,68091.0,68086.0,0.08294807]
[1772859119339,0.00148,68090.0,68088.0,0.0090396]
[1772859119501,0.00148,68090.0,68085.0,0.0092396]
[1772859119714,0.00148,68090.0,68085.0,0.0002]
[1772859120716,0.07342592,68096.0,68085.0,0.0002]
[1772859120948,0.00148,68095.0,68085.0,0.0002]
[1772859122571,0.00170001,68095.0,68085.0,0.0002]
[1772859122769,0.0734279,68094.0,68085.0,0.0002]
[1772859125086,0.00148,68093.0,68085.0,0.0002]
[1772859129105,0.07343006,68092.0,68085.0,0.0002]
[1772859129607,0.07327523,68092.0,68085.0,0.0002]
[1772859135549,0.07312036,68092.0,68085.0,0.0002]
[1772859135754,0.07296548,68092.0,68085.0,0.0002]
[1772859137429,0.07296548,68092.0,68085.0,0.0005726]
[1772859137934,0.07281065,68092.0,68085.0,0.0005726]
[1772859138287,0.07250088,68092.0,68085.0,0.0005726]
[1772859139896,0.07250088,68092.0,68086.0,0.07343653]
[1772859140137,0.00148,68091.0,68086.0,0.07343653]
[1772859140339,0.00148,68091.0,68086.0,0.07380913]
[1772859145171,0.00132512,68091.0,68086.0,0.07380913]
[1772859147626,0.00101539,68091.0,68087.0,0.02437438]
[1772859148721,0.00101539,68091.0,68087.0,0.09780969]
[1772859150405,0.00086051,68091.0,68087.0,0.09780969]
[1772859152020,0.00070567,68091.0,68087.0,0.09780969]
[1772859152503,0.00070567,68091.0,68087.0,0.02437438]
[1772859158447,0.00070567,68091.0,68086.0,0.07380913]
[1772859159902,0.00055083,68091.0,68086.0,0.07380913]
[1772859160416,0.07398209,68091.0,68086.0,0.07380913]
[1772859161683,0.07398209,68091.0,68086.0,0.0003726]
[1772859162089,0.07398209,68091.0,68084.0,0.0003015]
[1772859162090,0.15862917,68091.0,68084.0,0.0003015]
[1772859162717,0.15862917,68091.0,68086.0,0.0002]
[1772859162944,0.15884918,68091.0,68086.0,0.0002]
[1772859164118,0.15884918,68091.0,68084.0,0.0003015]
[1772859165377,0.0742021,68091.0,68084.0,0.0003015]
[1772859167158,0.0742021,68091.0,68084.0,0.02039024]
[1772859168111,0.0742021,68091.0,68084.0,0.07374004]
[1772859168320,0.0742021,68091.0,68085.0,0.02008874]
[1772859169179,0.07365127,68091.0,68085.0,0.02008874]
[1772859169391,0.07491243,68090.0,68085.0,0.02008874]
[1772859169578,0.07343243,68090.0,68085.0,0.02008874]
[1772859169784,0.07491243,68090.0,68085.0,0.02008874]
[1772859171114,0.07343243,68090.0,68085.0,0.02008874]
[1772859171352,0.07491243,68090.0,68085.0,0.02008874]
[1772859171535,0.07491243,68090.0,68085.0,0.02028874]
[1772859173635,0.07343243,68090.0,68085.0,0.02028874]
[1772859173861,0.07491243,68090.0,68085.0,0.02028874]
[1772859175670,0.07475755,68090.0,68085.0,0.02028874]
[1772859177285,0.00022001,68091.0,68085.0,0.02028874]
[1772859177489,0.00148,68090.0,68085.0,0.02028874]
[1772859177932,0.07343243,68090.0,68085.0,0.02028874]
[1772859178091,0.07491243,68090.0,68085.0,0.02028874]
[1772859178877,0.07343243,68090.0,68085.0,0.02028874]
[1772859179072,0.07491243,68090.0,68085.0,0.02028874]
[1772859179924,0.07343243,68090.0,68085.0,0.02028874]
[1772859180107,0.07491243,68090.0,68085.0,0.02028874]
[1772859180539,0.07343243,68090.0,68085.0,0.02028874]
[1772859180829,0.07365244,68090.0,68085.0,0.02028874]
[1772859181460,0.07365244,68090.0,68086.0,0.02091838]
[1772859195024,0.07365244,68090.0,68085.0,0.0002]
[1772859195227,0.07365244,68090.0,68085.0,0.01419352]
[1772859203215,0.00022001,68093.0,68085.0,0.07363689]
[1772859203419,0.00148,68098.0,68086.0,0.17555281]
[1772859203621,0.00148,68098.0,68088.0,0.01474917]
[1772859205259,0.07512394,68098.0,68089.0,0.0734333]
[1772859205437,0.07512394,68098.0,68090.0,0.01474917]
[1772859206206,0.07364394,68098.0,68090.0,0.01474917]
[1772859206541,0.07512394,68098.0,68090.0,0.01474917]
[1772859207213,0.07512394,68098.0,68091.0,0.07343114]
[1772859207419,0.07512394,68098.0,68091.0,0.08818031]
[1772859209704,0.08164009,68097.0,68086.0,0.2489889]
[1772859209869,0.08164009,68097.0,68085.0,0.0736366]
[1772859211841,0.07342575,68096.0,68085.0,0.0736366]
[1772859212045,0.07183465,68095.0,68085.0,0.0736366]
[1772859214824,0.0734279,68094.0,68085.0,0.0736366]
[1772859217865,0.04183465,68093.0,68085.0,0.0736366]
[1772859218212,0.00148,68092.0,68085.0,0.0736366]
[1772859223235,0.00148,68092.0,68085.0,0.08838577]
[1772859228880,0.07183465,68091.0,68084.0,0.07373961]
[1772859229834,0.07183465,68091.0,68085.0,0.0734366]
[1772859231331,0.07183465,68091.0,68085.0,0.0736366]
[1772859231627,0.14526586,68091.0,68085.0,0.0736366]
[1772859232972,0.14526586,68091.0,68085.0,0.0002]
[1772859235990,0.00148,68090.0,68085.0,0.0002]
[1772859240481,0.07342467,68097.0,68086.0,0.01552636]
[1772859240803,0.00148,68096.0,68086.0,0.01552636]
[1772859242481,0.07342683,68095.0,68087.0,0.07343545]
[1772859243402,0.07342683,68095.0,68088.0,0.01552636]
[1772859244454,0.00148,68094.0,68088.0,0.01552636]
[1772859246029,0.00148,68093.0,68088.0,0.08896054]
[1772859246842,0.00148,68092.0,68088.0,0.08896054]
[1772859247267,0.0749103,68092.0,68085.0,0.07363684]
[1772859247461,0.0734303,68092.0,68085.0,0.07363684]
[1772859247664,0.00148,68091.0,68085.0,0.07363684]
[1772859254045,0.00148,68091.0,68085.0,0.0891632]
[1772859254259,0.00148,68090.0,68086.0,0.01552636]
[1772859254795,0.00148,68089.0,68086.0,0.01552636]
[1772859257000,0.00022001,68099.0,68087.0,0.07343545]
[1772859257183,0.00022001,68100.0,68089.0,0.01552636]
[1772859257780,0.00022001,68096.0,68089.0,0.01552636]
[1772859258401,0.00022001,68096.0,68089.0,0.01652636]
[1772859259193,0.00022001,68096.0,68090.0,0.07343222]
[1772859259395,0.00022001,68096.0,68091.0,0.01552636]
[1772859260343,0.00148,68101.0,68091.0,0.01552636]
[1772859260868,0.00022001,68102.0,68091.0,0.01552636]
[1772859261088,0.00148,68101.0,68091.0,0.01552636]
[1772859261292,0.00148,68101.0,68093.0,0.01552636]
[1772859261529,0.00170001,68102.0,68093.0,0.01552636]
[1772859263269,0.00022001,68102.0,68094.0,0.0734279]
[1772859263418,0.00022001,68102.0,68095.0,0.01552636]
[1772859263618,0.00170001,68102.0,68095.0,0.01552636]
[1772859264223,0.00022001,68101.0,68095.0,0.01552636]
[1772859265713,0.00022001,68101.0,68097.0,0.01552636]
[1772859268439,0.00022001,68101.0,68098.0,0.07342359]
[1772859271777,0.00022001,68101.0,68090.0,0.07343222]
[1772859272106,0.07165198,68100.0,68090.0,0.07343222]
[1772859272990,0.04705516,68100.0,68085.0,0.0002]
[1772859273310,0.06763462,68099.0,68086.0,0.07343589]
[1772859275285,0.07342359,68098.0,68086.0,0.07343589]
[1772859279926,0.07342359,68098.0,68086.0,0.07363589]
[1772859281585,0.07342359,68098.0,68086.0,0.0002]
[1772859281791,0.06763462,68097.0,68085.0,0.07363761]
[1772859282099,0.07342683,68095.0,68085.0,0.07363761]
[1772859283128,0.12048199,68095.0,68068.0,0.0734558]
[1772859283369,0.12048199,68095.0,68067.0,0.08111788]
[1772859283370,0.04705516,68081.0,68067.0,0.08111788]
[1772859283543,0.00148,68080.0,68067.0,0.07345642]
[1772859283743,0.00148,68079.0,68067.0,0.07345642]
[1772859283898,0.00148,68078.0,68067.0,0.07345642]
[1772859284103,0.07344624,68077.0,68067.0,0.07345642]
[1772859284939,0.07344624,68077.0,68066.0,0.07358123]
[1772859285159,0.07344624,68077.0,68068.0,0.002]
[1772859285501,0.07344624,68077.0,68068.0,0.001]
[1772859285967,0.07344624,68077.0,68066.0,0.07358123]
[1772859286716,0.04705516,68076.0,68054.0,0.07470803]
[1772859286896,0.04705516,68070.0,68057.0,0.07346764]
[1772859287095,0.00148,68069.0,68057.0,0.07346764]
[1772859287361,0.00148,68069.0,68054.0,0.14817828]
[1772859287556,0.00148,68069.0,68054.0,0.07470803]
[1772859287753,0.00148,68069.0,68054.0,0.14817896]
[1772859287958,0.00148,68069.0,68053.0,0.14818017]
[1772859288189,0.00148,68068.0,68053.0,0.14818017]
[1772859288363,0.07493703,68067.0,68054.0,0.07470803]
[1772859288504,0.07345703,68067.0,68054.0,0.07470803]
[1772859288710,0.00148,68066.0,68059.0,0.0002]
[1772859288924,0.0016042,68066.0,68059.0,0.0002]
[1772859289124,0.00148,68065.0,68059.0,0.0002]
[1772859289323,0.00148,68065.0,68054.0,0.07470803]
[1772859289584,0.0001242,68066.0,68054.0,0.07470803]
[1772859289767,0.00148,68064.0,68054.0,0.07470803]
[1772859289950,0.0016042,68064.0,68054.0,0.07470803]
[1772859290163,0.00148,68063.0,68054.0,0.07470803]
[1772859290565,0.07346243,68062.0,68052.0,0.0002]
[1772859290768,0.00148,68061.0,68052.0,0.0002]
[1772859291138,0.07345703,68067.0,68052.0,0.0002]
[1772859291139,0.0001513,68078.0,68055.0,0.01552636]
[1772859291336,0.00148,68075.0,68059.0,0.01552636]
[1772859291541,0.00148,68075.0,68062.0,0.06788134]
[1772859291867,0.00148,68075.0,68059.0,0.01552636]
[1772859292215,0.00148,68075.0,68061.0,0.01552636]
[1772859292425,0.00020208,68078.0,68065.0,0.01552636]
[1772859292547,0.00020208,68078.0,68067.0,0.01552636]
[1772859292548,0.00148,68077.0,68067.0,0.01552636]
[1772859292755,0.00148,68077.0,68069.0,0.06788134]
[1772859292956,0.00148,68077.0,68069.0,0.0834077]
[1772859294198,0.00148,68077.0,68069.0,0.06788134]
[1772859294403,0.00148,68077.0,68070.0,0.01552636]
[1772859294907,0.00020208,68078.0,68071.0,0.07345271]
[1772859295156,0.00020208,68078.0,68071.0,0.08897907]
[1772859295341,0.00148,68077.0,68071.0,0.08897907]
[1772859298275,0.00148,68077.0,68071.0,0.07345271]
[1772859302408,0.00020208,68078.0,68071.0,0.07345271]
[1772859302619,0.00148,68077.0,68071.0,0.07345271]
[1772859303700,0.00170001,68077.0,68071.0,0.07345271]
[1772859309870,1e-08,68087.0,68071.0,0.07345271]
[1772859310074,0.07365168,68091.0,68072.0,0.06952237]
[1772859310261,0.00148,68090.0,68076.0,0.06952237]
[1772859310448,0.00148,68090.0,68071.0,0.07356805]
[1772859310449,0.00148,68090.0,68079.0,0.01766303]
[1772859310875,0.00022001,68084.0,68080.0,0.01766303]
[1772859311082,0.00148,68083.0,68080.0,0.01766303]
[1772859312885,0.00148,68083.0,68081.0,0.07344192]
[1772859315085,0.00022001,68091.0,68081.0,0.07344192]
[1772859315284,0.00148,68090.0,68081.0,0.07344192]
[1772859315483,0.00148,68090.0,68085.0,0.06952237]
[1772859315689,0.00148,68090.0,68088.0,0.01766303]
[1772859315893,0.07404176,68100.0,68088.0,0.01766303]
[1772859316077,0.00148,68099.0,68088.0,0.01766303]
[1772859317289,0.07342359,68098.0,68089.0,0.0734333]
[1772859317714,0.00148,68097.0,68089.0,0.09109633]
[1772859317926,0.00022001,68090.0,68089.0,0.09109633]
[1772859318142,0.00170001,68090.0,68089.0,0.09109633]
[1772859318361,0.00170001,68090.0,68089.0,0.1606187]
[1772859318600,0.07404244,68100.0,68090.0,0.0871854]
[1772859318930,0.00148,68099.0,68090.0,0.0871854]
[1772859319128,0.00022001,68097.0,68090.0,0.0871854]
[1772859319627,0.00148,68096.0,68091.0,0.07343114]
[1772859320131,0.00148,68095.0,68091.0,0.07343114]
[1772859320488,0.0736447,68097.0,68091.0,0.07343114]
[1772859320829,0.00148,68094.0,68091.0,0.07343114]
[1772859321189,0.00148,68094.0,68091.0,0.09109417]
[1772859321593,0.00148,68093.0,68091.0,0.09109417]
[1772859322063,0.00022001,68097.0,68091.0,0.09109417]
[1772859322210,0.00148,68092.0,68091.0,0.09109417]
[1772859325154,0.07364483,68097.0,68092.0,0.00148]
[1772859325308,0.00148,68096.0,68092.0,0.01914303]
[1772859325882,0.00022001,68094.0,68092.0,0.00148]
[1772859326141,0.00022001,68094.0,68088.0,0.07343437]
[1772859330437,0.00148,68093.0,68084.0,0.07343869]
[1772859330615,0.00156466,68093.0,68085.0,0.01766303]
[1772859331389,0.00148,68092.0,68085.0,0.01766303]
[1772859332573,0.00148,68092.0,68088.0,0.0002]
[1772859332964,8.466e-05,68093.0,68088.0,0.0002]
[1772859333118,0.00148,68092.0,68088.0,0.0002]
[1772859334657,0.00148,68092.0,68088.0,0.01786303]
[1772859338495,0.00022001,68101.0,68089.0,0.0734333]
[1772859338688,0.00022001,68101.0,68090.0,0.01766303]
[1772859338689,0.00148,68097.0,68090.0,0.01766303]
[1772859340950,0.00022001,68092.0,68091.0,0.07343114]
[1772859341153,0.00148,68097.0,68091.0,0.09109417]
[1772859341553,0.00148,68097.0,68091.0,0.07343114]
[1772859343273,0.00148,68097.0,68089.0,0.07343114]
[1772859344756,0.07490503,68097.0,68089.0,0.07343114]
[1772859346670,0.00148,68097.0,68089.0,0.07343114]
[1772859347686,0.00170001,68097.0,68089.0,0.07343114]
[1772859348461,0.00170001,68097.0,68089.0,0.01766303]
[1772859349120,0.00170001,68097.0,68088.0,0.0692359]
[1772859349121,0.00170001,68097.0,68091.0,0.01766303]
[1772859350254,0.00022001,68097.0,68092.0,0.07343006]
[1772859350433,0.00148,68096.0,68092.0,0.07343006]
[1772859350790,0.00148,68096.0,68092.0,0.09109309]
[1772859351933,0.00022001,68101.0,68092.0,0.09109309]
[1772859351934,0.00148,68101.0,68094.0,0.01766303]
[1772859352531,0.00148,68101.0,68096.0,0.01766303]
[1772859352861,0.00148,68101.0,68097.0,0.01766303]
[1772859353506,0.00022001,68103.0,68097.0,0.01766303]
[1772859353777,0.00022001,68103.0,68098.0,0.01766303]
[1772859353778,0.00148,68102.0,68098.0,0.01766303]
[1772859355059,0.00148,68101.0,68100.0,0.01766303]
[1772859358432,0.00022001,68103.0,68101.0,0.07342036]
[1772859358632,0.00148,68102.0,68101.0,0.07342036]
[1772859359327,0.00022001,68103.0,68101.0,0.07342036]
[1772859359526,0.00148,68102.0,68101.0,0.07342036]
[1772859359894,0.00022001,68103.0,68101.0,0.07342036]
[1772859360236,0.00148,68102.0,68101.0,0.09108339]
[1772859361392,0.0007332,68102.0,68101.0,0.07342036]
[1772859361748,0.00148,68102.0,68101.0,0.08894672]
[1772859361888,0.00022001,68107.0,68101.0,0.07342036]
[1772859362094,0.00148,68106.0,68102.0,0.01552636]
[1772859362525,1e-08,68108.0,68103.0,0.0734182]
[1772859362749,1e-08,68109.0,68105.0,0.01552636]
[1772859363126,0.00022001,68110.0,68105.0,0.01552636]
[1772859363326,0.00148,68108.0,68105.0,0.01552636]
[1772859364173,0.00148,68108.0,68103.0,0.0734182]
[1772859364373,0.00148,68108.0,68103.0,0.08894456]
[1772859367346,0.00148,68108.0,68102.0,0.0734182]
[1772859371183,0.00148,68108.0,68103.0,0.0002]
[1772859372060,0.00022001,68109.0,68103.0,0.0002]
[1772859372278,0.00148,68108.0,68103.0,0.0002]
[1772859372847,0.0018019,68108.0,68103.0,0.0002]
[1772859373042,0.0018019,68108.0,68104.0,0.07341712]
[1772859376781,0.00148,68107.0,68104.0,0.07341712]
[1772859377860,0.00148,68107.0,68104.0,0.0002]
[1772859387114,0.00022001,68109.0,68104.0,0.0002]
[1772859387285,0.00148,68107.0,68104.0,0.0002]
[1772859391551,0.00170001,68107.0,68104.0,0.0002]
[1772859393112,0.00148,68106.0,68104.0,0.0002]
[1772859400903,0.00894647,68105.0,68098.0,0.07342143]
[1772859401107,0.00894647,68105.0,68092.0,0.07343006]
[1772859401994,0.00894647,68105.0,68092.0,0.14693464]
[1772859405821,0.00894647,68105.0,68092.0,0.14713464]
[1772859409045,0.00894647,68105.0,68092.0,0.07363006]
[1772859409282,0.00894647,68105.0,68093.0,0.07350458]
[1772859411189,0.00894647,68105.0,68094.0,0.14693248]
[1772859412046,0.00148,68106.0,68094.0,0.0734279]
[1772859412444,0.00148,68106.0,68097.0,0.07350458]
[1772859412596,0.00148,68105.0,68097.0,0.07350458]
[1772859413187,0.00148,68105.0,68098.0,0.07342359]
[1772859413611,0.00022001,68107.0,68098.0,0.07342359]
[1772859413789,0.00148,68106.0,68098.0,0.07342359]
[1772859413994,0.00148,68105.0,68098.0,0.07342359]
[1772859415189,0.00148,68105.0,68098.0,0.14692817]
[1772859418735,0.00170001,68105.0,68098.0,0.14692817]
[1772859419838,0.00148,68104.0,68098.0,0.14692817]
[1772859420544,0.00921402,68103.0,68098.0,0.05540916]
[1772859420889,0.00921402,68103.0,68096.0,0.06330128]
[1772859421088,0.00921402,68103.0,68095.0,0.07342622]
[1772859421704,0.07341878,68103.0,68092.0,0.0002]
[1772859422030,0.00921402,68102.0,68092.0,0.0002]
[1772859422536,0.00921402,68102.0,68092.0,0.07695474]
[1772859423126,0.00921402,68102.0,68092.0,0.0002]
[1772859423961,0.01069402,68101.0,68092.0,0.0002]
[1772859425955,0.00921402,68099.0,68092.0,0.0002]
[1772859428131,0.07342359,68098.0,68092.0,0.0002]
[1772859430250,0.08268435,68096.0,68092.0,0.0002]
[1772859430449,0.00148,68095.0,68092.0,0.0002]
[1772859431626,0.0092586,68094.0,68092.0,0.0002]
[1772859431824,0.0092586,68094.0,68090.0,0.0002]
[1772859433005,0.0092586,68094.0,68092.0,0.0002]
[1772859435265,0.00148,68093.0,68092.0,0.0002]
[1772859437168,0.0092586,68092.0,68090.0,0.0002]
[1772859437401,0.0092586,68092.0,68089.0,0.0002]
[1772859437713,0.00148,68091.0,68089.0,0.0002]
[1772859438073,0.0107386,68091.0,68089.0,0.0002]
[1772859438831,0.00148,68090.0,68089.0,0.0002]
[1772859440184,0.08268991,68091.0,68089.0,0.0002]
[1772859440385,0.00148,68090.0,68089.0,0.0002]
[1772859449178,0.0107386,68090.0,68089.0,0.0002]
[1772859450228,0.0092586,68089.0,68085.0,0.0003323]
[1772859450430,0.00932628,68089.0,68085.0,0.0003323]
[1772859452549,0.08269297,68088.0,68085.0,0.0003323]
[1772859453063,0.0092586,68088.0,68085.0,0.0003323]
[1772859454984,0.0092586,68086.0,68085.0,0.0003323]
[1772859458262,0.0092586,68086.0,68082.0,0.0002]
[1772859458263,0.07343653,68086.0,68082.0,0.0002]
[1772859458406,0.0086879,68085.0,68082.0,0.0002]
[1772859458606,0.00148,68084.0,68082.0,0.0002]
[1772859459624,0.00148,68084.0,68079.0,0.0001233]
[1772859459826,0.0101679,68084.0,68079.0,0.0001233]
[1772859461327,0.07343977,68083.0,68079.0,0.0001233]
[1772859462498,0.0086879,68082.0,68079.0,0.0001233]
[1772859463439,0.0734417,68082.0,68079.0,0.0001233]
[1772859463767,0.07343545,68087.0,68080.0,0.00889067]
[1772859464043,0.00148,68086.0,68081.0,0.08565514]
[1772859464250,0.00148,68086.0,68081.0,0.07676447]
[1772859465409,0.07491684,68086.0,68081.0,0.07676447]
[1772859469694,0.07343545,68087.0,68081.0,0.07676447]
[1772859469895,0.00148,68086.0,68082.0,0.08438739]
[1772859470096,0.00148,68085.0,68083.0,0.00889067]
[1772859470417,0.00148,68085.0,68084.0,0.07549672]
[1772859470619,0.00148,68084.0,68083.0,0.08447205]
[1772859471294,0.07365174,68091.0,68083.0,0.08447205]
[1772859471502,0.00148,68090.0,68083.0,0.08447205]
[1772859472025,0.00148,68089.0,68085.0,0.07549672]
[1772859472385,0.00148,68088.0,68085.0,0.07549672]
[1772859472590,0.00022001,68086.0,68085.0,0.07549672]
[1772859473012,0.00170001,68086.0,68085.0,0.07549672]
[1772859473810,0.00022001,68086.0,68085.0,0.07549672]
[1772859474035,0.00170001,68086.0,68085.0,0.07549672]
[1772859477121,0.00170001,68086.0,68083.0,0.07352441]
[1772859477327,0.00170001,68086.0,68083.0,0.14869866]
[1772859480164,0.00170001,68086.0,68084.0,0.07517425]
[1772859481058,0.00148,68085.0,68084.0,0.07517425]
[1772859481257,0.00022001,68091.0,68084.0,0.07517425]
[1772859481464,0.00022001,68091.0,68084.0,0.08348965]
[1772859481659,0.00148,68090.0,68084.0,0.08348965]
[1772859482025,0.07365128,68091.0,68083.0,8.466e-05]
[1772859482208,0.07491426,68089.0,68083.0,8.466e-05]
[1772859482404,0.08341468,68089.0,68083.0,8.466e-05]
[1772859482606,0.00850042,68088.0,68080.0,0.073443]
[1772859482942,0.00850042,68088.0,68080.0,0.07355834]
[1772859485002,0.00850042,68086.0,68080.0,0.00011534]
[1772859485663,0.00850042,68086.0,68080.0,0.00031534]
[1772859487945,0.07343761,68085.0,68080.0,0.00031534]
[1772859488160,0.00797412,68084.0,68080.0,0.00031534]
[1772859488413,0.00945412,68083.0,68075.0,0.0006]
[1772859488557,0.00945412,68083.0,68075.0,0.00066768]
[1772859490458,0.07344085,68082.0,68075.0,0.00066768]
[1772859493483,0.07344085,68084.0,68075.0,0.00066768]
[1772859493484,0.00148,68081.0,68076.0,0.07344732]
[1772859493714,0.00148,68080.0,68077.0,0.07242585]
[1772859493849,0.07344085,68084.0,68075.0,0.07411548]
[1772859494187,0.00148,68083.0,68075.0,0.07411548]
[1772859494600,0.00945412,68083.0,68075.0,0.07411548]
[1772859495381,0.07344085,68082.0,68075.0,0.07411548]
[1772859496602,0.00148,68081.0,68075.0,0.07411548]
[1772859500425,0.07492214,68081.0,68075.0,0.07411548]
[1772859500803,0.00148,68081.0,68075.0,0.07411548]
[1772859509693,0.0749221,68081.0,68075.0,0.07411548]
[1772859510136,0.07492195,68081.0,68075.0,0.07411548]
[1772859510322,0.00148,68080.0,68075.0,0.07411548]
[1772859510520,0.00148,68079.0,68075.0,0.14654133]
[1772859510852,0.00148,68079.0,68076.0,0.07242585]
[1772859511751,0.00148,68079.0,68076.0,0.14587306]
[1772859513054,0.00148,68079.0,68076.0,0.14587265]
[1772859515155,0.00148,68079.0,68076.0,0.14587286]
[1772859515357,0.00148,68079.0,68076.0,0.14587285]
[1772859515558,0.00148,68079.0,68076.0,0.07242585]
[1772859515781,0.08289828,68079.0,68075.0,0.00066768]
[1772859516115,0.07492416,68079.0,68075.0,0.00066768]
[1772859516508,0.08289828,68079.0,68075.0,0.00066768]
[1772859516873,0.07492416,68079.0,68075.0,0.00066768]
[1772859517480,0.07492416,68079.0,68071.0,0.0736526]
[1772859517682,0.08289828,68079.0,68071.0,0.07370338]
[1772859519467,0.07492416,68079.0,68071.0,0.07353314]
[1772859520726,0.07492416,68079.0,68071.0,8.054e-05]
[1772859524663,0.07492416,68079.0,68070.0,0.00011035]
[1772859524997,0.0750088,68079.0,68070.0,0.07252515]
[1772859526386,0.00821624,68078.0,68065.0,0.0001233]
[1772859526785,0.07344624,68077.0,68065.0,0.0001233]
[1772859526985,0.07344624,68077.0,68066.0,0.07470683]
[1772859527204,0.07344624,68077.0,68066.0,0.08266205]
[1772859527994,0.00148,68076.0,68066.0,0.08266205]
[1772859528667,0.00148,68075.0,68066.0,0.08266205]
[1772859529071,0.07344948,68074.0,68067.0,0.07470683]
[1772859529713,0.07344948,68074.0,68070.0,0.0002]
[1772859530117,8.464e-05,68079.0,68072.0,0.00795522]
[1772859530118,0.0734456,68078.0,68072.0,0.00795522]
[1772859530316,0.0735289,68079.0,68072.0,0.00795522]
[1772859530474,0.00148,68078.0,68072.0,0.00795522]
[1772859530680,0.00148,68077.0,68072.0,0.00795522]
[1772859531254,0.00148,68076.0,68072.0,0.0814065]
[1772859531727,8.464e-05,68079.0,68072.0,0.07345128]
[1772859531728,0.00148,68075.0,68072.0,0.07345128]
[1772859531926,0.00148,68074.0,68073.0,0.00795522]
[1772859533327,8.464e-05,68079.0,68073.0,0.08140578]
[1772859533656,0.00148,68078.0,68073.0,0.08140578]
[1772859533862,8.464e-05,68079.0,68073.0,0.08140578]
[1772859533990,0.00148,68077.0,68073.0,0.08140578]
[1772859534342,8.464e-05,68079.0,68073.0,0.08140578]
[1772859534540,0.00148,68076.0,68073.0,0.08140578]
[1772859534919,0.00148,68075.0,68070.0,0.07365163]
[1772859535123,0.00148,68075.0,68071.0,0.00795522]
[1772859535326,0.00148,68074.0,68071.0,0.00795522]
[1772859535521,8.464e-05,68079.0,68071.0,0.00795522]
[1772859535725,0.00148,68078.0,68071.0,0.00795522]
[1772859535930,0.07352897,68079.0,68071.0,0.00795522]
[1772859536102,0.00148,68078.0,68071.0,0.00795522]
[1772859536559,0.00148,68078.0,68073.0,0.0002]
[1772859536733,0.00148,68077.0,68073.0,0.0002]
[1772859537160,0.07352897,68079.0,68073.0,0.0002]
[1772859537364,0.00148,68076.0,68073.0,0.0002]
[1772859537741,0.00148,68075.0,68073.0,0.0002]
[1772859540064,0.00148,68075.0,68073.0,2.986e-05]
[1772859544297,0.00148,68075.0,68069.0,0.07249496]
[1772859545994,0.00148,68075.0,68066.0,0.00869781]
[1772859547500,0.07492891,68075.0,68066.0,0.00869781]
[1772859548314,0.07492891,68075.0,68066.0,0.0002]
[1772859548568,0.08361684,68075.0,68066.0,0.0002]